Workbook

Sheet GANTT VIEW_new
A1: PROJECT NAME: | H1: Gantt Start Date: | I1: 2011-11-03
A2: PROJECT MANAGER:
A3: WBS | B3: TASKS | C3: PLANNED START DATE | D3: PLANNED FINISH DATE | E3: ACTUAL START DATE | F3: ACTUAL FINISH DATE | G3: STATUS | H3: =(SUMPRODUCT(H9:H47,D9:D47-C9:C47)+SUMPRODUCT(H53:H91,D53:D91-C53:C91))/((SUM(D9:D47)-SUM(C9:C47))+(SUM(D53:D91)-SUM(C53:C91))) -> 91.7% | I3: =I1 -> 2011-11-03 | J3: =I3+1 -> 2011-11-04 | K3: =J3+1 -> 2011-11-05 | L3: 2011-11-06 | M3: 2011-11-07 | N3: 2011-11-08 | O3: 2011-11-09 | P3: 2011-11-10 | Q3: 2011-11-11 | R3: 2011-11-12 | S3: 2011-11-13 | T3: 2011-11-14 | U3: 2011-11-15 | V3: 2011-11-16 | W3: 2011-11-17 | X3: 2011-11-18 | Y3: 2011-11-19 | Z3: 2011-11-20 | AA3: 2011-11-21 | AB3: 2011-11-22 | AC3: 2011-11-23 | AD3: 2011-11-24 | AE3: 2011-11-25 | AF3: 2011-11-26 | AG3: 2011-11-27 | AH3: 2011-11-28 | AI3: 2011-11-29 | AJ3: 2011-11-30 | AK3: 2011-12-01 | AL3: 2011-12-02 | AM3: 2011-12-03 | AN3: 2011-12-04 | AO3: 2011-12-05 | AP3: 2011-12-06 | AQ3: 2011-12-07 | AR3: 2011-12-08 | AS3: 2011-12-09 | AT3: 2011-12-10 | AU3: 2011-12-11 | AV3: 2011-12-12 | AW3: 2011-12-13 | AX3: 2011-12-14 | AY3: 2011-12-15 | AZ3: 2011-12-16 | BA3: 2011-12-17 | BB3: 2011-12-18 | BC3: 2011-12-19 | BD3: 2011-12-20 | BE3: 2011-12-21 | BF3: 2011-12-22 | BG3: 2011-12-23 | BH3: 2011-12-24 | BI3: 2011-12-25 | BJ3: 2011-12-26 | BK3: 2011-12-27 | BL3: 2011-12-28 | BM3: 2011-12-29 | BN3: 2011-12-30 | BO3: 2011-12-31 | BP3: 2012-01-01 | BQ3: 2012-01-02 | BR3: 2012-01-03 | BS3: 2012-01-04 | BT3: 2012-01-05 | BU3: 2012-01-06 | BV3: 2012-01-07 | BW3: =BV3+1 -> 2012-01-08 | BX3: 2012-01-09 | BY3: 2012-01-10 | BZ3: 2012-01-11 | CA3: 2012-01-12 | CB3: 2012-01-13 | CC3: 2012-01-14 | CD3: 2012-01-15 | CE3: 2012-01-16 | CF3: 2012-01-17 | CG3: 2012-01-18 | CH3: 2012-01-19 | CI3: 2012-01-20 | CJ3: 2012-01-21 | CK3: 2012-01-22 | CL3: 2012-01-23 | CM3: 2012-01-24 | CN3: 2012-01-25 | CO3: 2012-01-26 | CP3: 2012-01-27 | CQ3: 2012-01-28 | CR3: 2012-01-29 | CS3: 2012-01-30 | CT3: 2012-01-31 | CU3: 2012-02-01 | CV3: 2012-02-02 | CW3: 2012-02-03 | CX3: 2012-02-04 | CY3: 2012-02-05 | CZ3: 2012-02-06 | DA3: 2012-02-07 | DB3: 2012-02-08 | DC3: 2012-02-09 | DD3: 2012-02-10 | DE3: 2012-02-11 | DF3: 2012-02-12 | DG3: 2012-02-13 | DH3: 2012-02-14 | DI3: 2012-02-15 | DJ3: 2012-02-16 | DK3: 2012-02-17 | DL3: 2012-02-18 | DM3: 2012-02-19 | DN3: 2012-02-20 | DO3: 2012-02-21 | DP3: 2012-02-22 | DQ3: 2012-02-23 | DR3: 2012-02-24 | DS3: 2012-02-25 | DT3: 2012-02-26 | DU3: 2012-02-27 | DV3: 2012-02-28 | DW3: 2012-02-29 | DX3: 2012-03-01 | DY3: 2012-03-02 | DZ3: 2012-03-03 | EA3: 2012-03-04 | EB3: 2012-03-05 | EC3: 2012-03-06 | ED3: 2012-03-07 | EE3: 2012-03-08 | EF3: 2012-03-09 | EG3: 2012-03-10 | EH3: 2012-03-11 | EI3: =EH3+1 -> 2012-03-12 | EJ3: 2012-03-13 | EK3: 2012-03-14 | EL3: 2012-03-15 | EM3: 2012-03-16 | EN3: 2012-03-17 | EO3: 2012-03-18 | EP3: 2012-03-19 | EQ3: 2012-03-20 | ER3: 2012-03-21 | ES3: 2012-03-22 | ET3: 2012-03-23 | EU3: 2012-03-24 | EV3: 2012-03-25 | EW3: 2012-03-26 | EX3: 2012-03-27 | EY3: 2012-03-28 | EZ3: 2012-03-29 | FA3: 2012-03-30 | FB3: 2012-03-31 | FC3: 2012-04-01 | FD3: 2012-04-02 | FE3: 2012-04-03 | FF3: 2012-04-04 | FG3: 2012-04-05 | FH3: 2012-04-06 | FI3: 2012-04-07 | FJ3: 2012-04-08 | FK3: 2012-04-09 | FL3: 2012-04-10 | FM3: 2012-04-11 | FN3: 2012-04-12 | FO3: 2012-04-13 | FP3: 2012-04-14 | FQ3: 2012-04-15 | FR3: 2012-04-16 | FS3: 2012-04-17 | FT3: 2012-04-18 | FU3: 2012-04-19 | FV3: 2012-04-20 | FW3: 2012-04-21 | FX3: 2012-04-22 | FY3: 2012-04-23 | FZ3: 2012-04-24 | GA3: 2012-04-25 | GB3: 2012-04-26 | GC3: 2012-04-27 | GD3: 2012-04-28 | GE3: 2012-04-29 | GF3: 2012-04-30 | GG3: 2012-05-01 | GH3: 2012-05-02 | GI3: 2012-05-03 | GJ3: 2012-05-04 | GK3: 2012-05-05 | GL3: 2012-05-06 | GM3: 2012-05-07 | GN3: 2012-05-08 | GO3: 2012-05-09 | GP3: 2012-05-10 | GQ3: 2012-05-11 | GR3: 2012-05-12 | GS3: 2012-05-13 | GT3: 2012-05-14 | GU3: =GT3+1 -> 2012-05-15 | GV3: 2012-05-16 | GW3: 2012-05-17 | GX3: 2012-05-18 | GY3: 2012-05-19 | GZ3: 2012-05-20 | HA3: 2012-05-21 | HB3: 2012-05-22 | HC3: 2012-05-23 | HD3: 2012-05-24 | HE3: 2012-05-25 | HF3: 2012-05-26 | HG3: 2012-05-27 | HH3: 2012-05-28 | HI3: 2012-05-29 | HJ3: 2012-05-30 | HK3: 2012-05-31 | HL3: 2012-06-01 | HM3: 2012-06-02 | HN3: 2012-06-03 | HO3: 2012-06-04 | HP3: 2012-06-05 | HQ3: 2012-06-06 | HR3: 2012-06-07 | HS3: 2012-06-08 | HT3: 2012-06-09 | HU3: 2012-06-10 | HV3: 2012-06-11 | HW3: 2012-06-12 | HX3: 2012-06-13 | HY3: 2012-06-14 | HZ3: 2012-06-15 | IA3: 2012-06-16 | IB3: 2012-06-17 | IC3: 2012-06-18 | ID3: 2012-06-19 | IE3: 2012-06-20 | IF3: 2012-06-21 | IG3: 2012-06-22 | IH3: 2012-06-23 | II3: 2012-06-24 | IJ3: 2012-06-25 | IK3: 2012-06-26 | IL3: 2012-06-27 | IM3: 2012-06-28 | IN3: 2012-06-29
A5: 1 | B5: WBS Element 1 | C5: =MIN(C9:C47) -> 2011-11-04 | D5: =MAX(D9:D47) -> 2011-12-11 | E5: =MIN(E9:E47) -> 2011-11-05 | F5: =MAX(F9:F47) -> 2011-11-23 | G5: In Progress | H5: =SUMPRODUCT(H9:H47,D9:D47-C9:C47)/(SUM(D9:D47)-SUM(C9:C47)) -> 100.0% | I5: =IF(AND(I$3>=$C5,I$3<=$D5),1,"") ->  | J5: =IF(AND(J$3>=$C5,J$3<=$D5),1,"") -> 1 | K5: 1 | L5: 1 | M5: 1 | N5: 1 | O5: 1 | P5: 1 | Q5: 1 | R5: 1 | S5: 1 | T5: 1 | U5: 1 | V5: 1 | W5: 1 | X5: 1 | Y5: 1 | Z5: 1 | AA5: 1 | AB5: 1 | AC5: 1 | AD5: 1 | AE5: 1 | AF5: 1 | AG5: 1 | AH5: 1 | AI5: 1 | AJ5: 1 | AK5: 1 | AL5: 1 | AM5: 1 | AN5: 1 | AO5: 1 | AP5: 1 | AQ5: 1 | AR5: 1 | AS5: 1 | AT5: 1 | AU5: 1 | BV5: =IF(AND(BV$3>=$C5,BV$3<=$D5),1,"") ->  | EH5: =IF(AND(EH$3>=$C5,EH$3<=$D5),1,"") ->  | GT5: =IF(AND(GT$3>=$C5,GT$3<=$D5),1,"") -> 
I7: =IF(OR(I$3=$E5,I$3=$F5,AND(LEN($F5) > 0,LEN($E5) > 0,I$3>$E5,I$3<$F5)),1,IF(LEN($F5)>0,"",IF(OR(I$3=$E5,I$3=$F5,AND((($D5-$C5)*$H5)+$E5>=I$3,$E5<=I$3))=TRUE,1,""))) ->  | J7: =IF(OR(J$3=$E5,J$3=$F5,AND(LEN($F5) > 0,LEN($E5) > 0,J$3>$E5,J$3<$F5)),1,IF(LEN($F5)>0,"",IF(OR(J$3=$E5,J$3=$F5,AND((($D5-$C5)*$H5)+$E5>=J$3,$E5<=J$3))=TRUE,1,""))) ->  | K7: 1 | L7: 1 | M7: 1 | N7: 1 | O7: 1 | P7: 1 | Q7: 1 | R7: 1 | S7: 1 | T7: 1 | U7: 1 | V7: 1 | W7: 1 | X7: 1 | Y7: 1 | Z7: 1 | AA7: 1 | AB7: 1 | AC7: 1 | BV7: =IF(OR(BV$3=$E5,BV$3=$F5,AND(LEN($F5) > 0,LEN($E5) > 0,BV$3>$E5,BV$3<$F5)),1,IF(LEN($F5)>0,"",IF(OR(BV$3=$E5,BV$3=$F5,AND((($D5-$C5)*$H5)+$E5>=BV$3,$E5<=BV$3))=TRUE,1,""))) ->  | EH7: =IF(OR(EH$3=$E5,EH$3=$F5,AND(LEN($F5) > 0,LEN($E5) > 0,EH$3>$E5,EH$3<$F5)),1,IF(LEN($F5)>0,"",IF(OR(EH$3=$E5,EH$3=$F5,AND((($D5-$C5)*$H5)+$E5>=EH$3,$E5<=EH$3))=TRUE,1,""))) ->  | GT7: =IF(OR(GT$3=$E5,GT$3=$F5,AND(LEN($F5) > 0,LEN($E5) > 0,GT$3>$E5,GT$3<$F5)),1,IF(LEN($F5)>0,"",IF(OR(GT$3=$E5,GT$3=$F5,AND((($D5-$C5)*$H5)+$E5>=GT$3,$E5<=GT$3))=TRUE,1,""))) -> 
A9: 1.1 | B9: Activity-1 | C9: 2011-11-05 | D9: 2011-12-11 | E9: 2011-11-09 | F9: 2011-11-15 | G9: Completed | H9: 100% | I9: =IF(AND(I$3>=$C9,I$3<=$D9),1,"") ->  | J9: =IF(AND(J$3>=$C9,J$3<=$D9),1,"") ->  | K9: 1 | L9: 1 | M9: 1 | N9: 1 | O9: 1 | P9: 1 | Q9: 1 | R9: 1 | S9: 1 | T9: 1 | U9: 1 | V9: 1 | W9: 1 | X9: 1 | Y9: 1 | Z9: 1 | AA9: 1 | AB9: 1 | AC9: 1 | AD9: 1 | AE9: 1 | AF9: 1 | AG9: 1 | AH9: 1 | AI9: 1 | AJ9: 1 | AK9: 1 | AL9: 1 | AM9: 1 | AN9: 1 | AO9: 1 | AP9: 1 | AQ9: 1 | AR9: 1 | AS9: 1 | AT9: 1 | AU9: 1 | BV9: =IF(AND(BV$3>=$C9,BV$3<=$D9),1,"") ->  | EH9: =IF(AND(EH$3>=$C9,EH$3<=$D9),1,"") ->  | GT9: =IF(AND(GT$3>=$C9,GT$3<=$D9),1,"") -> 
I11: =IF(OR(I$3=$E9,I$3=$F9,AND(LEN($F9) > 0,LEN($E9) > 0,I$3>$E9,I$3<$F9)),1,IF(LEN($F9)>0,"",IF(OR(I$3=$E9,I$3=$F9,AND((($D9-$C9)*$H9)+$E9>=I$3,$E9<=I$3))=TRUE,1,""))) ->  | J11: =IF(OR(J$3=$E9,J$3=$F9,AND(LEN($F9) > 0,LEN($E9) > 0,J$3>$E9,J$3<$F9)),1,IF(LEN($F9)>0,"",IF(OR(J$3=$E9,J$3=$F9,AND((($D9-$C9)*$H9)+$E9>=J$3,$E9<=J$3))=TRUE,1,""))) ->  | K11: =IF(OR(K$3=$E9,K$3=$F9,AND(LEN($F9) > 0,LEN($E9) > 0,K$3>$E9,K$3<$F9)),1,IF(LEN($F9)>0,"",IF(OR(K$3=$E9,K$3=$F9,AND((($D9-$C9)*$H9)+$E9>=K$3,$E9<=K$3))=TRUE,1,""))) ->  | O11: =IF(OR(O$3=$E9,O$3=$F9,AND(LEN($F9) > 0,LEN($E9) > 0,O$3>$E9,O$3<$F9)),1,IF(LEN($F9)>0,"",IF(OR(O$3=$E9,O$3=$F9,AND((($D9-$C9)*$H9)+$E9>=O$3,$E9<=O$3))=TRUE,1,""))) -> 1 | P11: 1 | Q11: 1 | R11: 1 | S11: 1 | T11: 1 | U11: 1 | BW11: =IF(OR(BW$3=$E9,BW$3=$F9,AND(LEN($F9) > 0,LEN($E9) > 0,BW$3>$E9,BW$3<$F9)),1,IF(LEN($F9)>0,"",IF(OR(BW$3=$E9,BW$3=$F9,AND((($D9-$C9)*$H9)+$E9>=BW$3,$E9<=BW$3))=TRUE,1,""))) ->  | EI11: =IF(OR(EI$3=$E9,EI$3=$F9,AND(LEN($F9) > 0,LEN($E9) > 0,EI$3>$E9,EI$3<$F9)),1,IF(LEN($F9)>0,"",IF(OR(EI$3=$E9,EI$3=$F9,AND((($D9-$C9)*$H9)+$E9>=EI$3,$E9<=EI$3))=TRUE,1,""))) ->  | GU11: =IF(OR(GU$3=$E9,GU$3=$F9,AND(LEN($F9) > 0,LEN($E9) > 0,GU$3>$E9,GU$3<$F9)),1,IF(LEN($F9)>0,"",IF(OR(GU$3=$E9,GU$3=$F9,AND((($D9-$C9)*$H9)+$E9>=GU$3,$E9<=GU$3))=TRUE,1,""))) -> 
A13: 1.2 | B13: Activity-2 | C13: 2011-11-04 | D13: 2011-11-17 | E13: 2011-11-11 | F13: 2011-11-23 | G13: In Progress | H13: 100% | I13: =IF(AND(I$3>=$C13,I$3<=$D13),1,"") ->  | J13: =IF(AND(J$3>=$C13,J$3<=$D13),1,"") -> 1 | K13: 1 | L13: 1 | M13: 1 | N13: 1 | O13: 1 | P13: 1 | Q13: 1 | R13: 1 | S13: 1 | T13: 1 | U13: 1 | V13: 1 | W13: 1 | BV13: =IF(AND(BV$3>=$C13,BV$3<=$D13),1,"") ->  | EH13: =IF(AND(EH$3>=$C13,EH$3<=$D13),1,"") ->  | GT13: =IF(AND(GT$3>=$C13,GT$3<=$D13),1,"") -> 
I15: =IF(OR(I$3=$E13,I$3=$F13,AND(LEN($F13) > 0,LEN($E13) > 0,I$3>$E13,I$3<$F13)),1,IF(LEN($F13)>0,"",IF(OR(I$3=$E13,I$3=$F13,AND((($D13-$C13)*$H13)+$E13>=I$3,$E13<=I$3))=TRUE,1,""))) ->  | J15: =IF(OR(J$3=$E13,J$3=$F13,AND(LEN($F13) > 0,LEN($E13) > 0,J$3>$E13,J$3<$F13)),1,IF(LEN($F13)>0,"",IF(OR(J$3=$E13,J$3=$F13,AND((($D13-$C13)*$H13)+$E13>=J$3,$E13<=J$3))=TRUE,1,""))) ->  | K15: =IF(OR(K$3=$E13,K$3=$F13,AND(LEN($F13) > 0,LEN($E13) > 0,K$3>$E13,K$3<$F13)),1,IF(LEN($F13)>0,"",IF(OR(K$3=$E13,K$3=$F13,AND((($D13-$C13)*$H13)+$E13>=K$3,$E13<=K$3))=TRUE,1,""))) ->  | Q15: 1 | R15: 1 | S15: 1 | T15: 1 | U15: 1 | V15: 1 | W15: 1 | X15: 1 | Y15: 1 | Z15: 1 | AA15: 1 | AB15: 1 | AC15: 1 | BW15: =IF(OR(BW$3=$E13,BW$3=$F13,AND(LEN($F13) > 0,LEN($E13) > 0,BW$3>$E13,BW$3<$F13)),1,IF(LEN($F13)>0,"",IF(OR(BW$3=$E13,BW$3=$F13,AND((($D13-$C13)*$H13)+$E13>=BW$3,$E13<=BW$3))=TRUE,1,""))) ->  | EI15: =IF(OR(EI$3=$E13,EI$3=$F13,AND(LEN($F13) > 0,LEN($E13) > 0,EI$3>$E13,EI$3<$F13)),1,IF(LEN($F13)>0,"",IF(OR(EI$3=$E13,EI$3=$F13,AND((($D13-$C13)*$H13)+$E13>=EI$3,$E13<=EI$3))=TRUE,1,""))) ->  | GU15: =IF(OR(GU$3=$E13,GU$3=$F13,AND(LEN($F13) > 0,LEN($E13) > 0,GU$3>$E13,GU$3<$F13)),1,IF(LEN($F13)>0,"",IF(OR(GU$3=$E13,GU$3=$F13,AND((($D13-$C13)*$H13)+$E13>=GU$3,$E13<=GU$3))=TRUE,1,""))) -> 
A17: 1.3 | B17: Activity-3 | C17: 2011-11-06 | D17: 2011-11-12 | E17: 2011-11-05 | F17: 2011-11-21 | G17: In Progress | H17: 100% | I17: =IF(AND(I$3>=$C17,I$3<=$D17),1,"") ->  | J17: =IF(AND(J$3>=$C17,J$3<=$D17),1,"") ->  | L17: 1 | M17: 1 | N17: 1 | O17: 1 | P17: 1 | Q17: 1 | R17: 1 | BV17: =IF(AND(BV$3>=$C17,BV$3<=$D17),1,"") ->  | EH17: =IF(AND(EH$3>=$C17,EH$3<=$D17),1,"") ->  | GT17: =IF(AND(GT$3>=$C17,GT$3<=$D17),1,"") -> 
I19: =IF(OR(I$3=$E17,I$3=$F17,AND(LEN($F17) > 0,LEN($E17) > 0,I$3>$E17,I$3<$F17)),1,IF(LEN($F17)>0,"",IF(OR(I$3=$E17,I$3=$F17,AND((($D17-$C17)*$H17)+$E17>=I$3,$E17<=I$3))=TRUE,1,""))) ->  | J19: =IF(OR(J$3=$E17,J$3=$F17,AND(LEN($F17) > 0,LEN($E17) > 0,J$3>$E17,J$3<$F17)),1,IF(LEN($F17)>0,"",IF(OR(J$3=$E17,J$3=$F17,AND((($D17-$C17)*$H17)+$E17>=J$3,$E17<=J$3))=TRUE,1,""))) ->  | K19: =IF(OR(K$3=$E17,K$3=$F17,AND(LEN($F17) > 0,LEN($E17) > 0,K$3>$E17,K$3<$F17)),1,IF(LEN($F17)>0,"",IF(OR(K$3=$E17,K$3=$F17,AND((($D17-$C17)*$H17)+$E17>=K$3,$E17<=K$3))=TRUE,1,""))) -> 1 | L19: 1 | M19: 1 | N19: 1 | O19: 1 | P19: 1 | Q19: 1 | R19: 1 | S19: 1 | T19: 1 | U19: 1 | V19: 1 | W19: 1 | X19: 1 | Y19: 1 | Z19: 1 | AA19: 1 | BW19: =IF(OR(BW$3=$E17,BW$3=$F17,AND(LEN($F17) > 0,LEN($E17) > 0,BW$3>$E17,BW$3<$F17)),1,IF(LEN($F17)>0,"",IF(OR(BW$3=$E17,BW$3=$F17,AND((($D17-$C17)*$H17)+$E17>=BW$3,$E17<=BW$3))=TRUE,1,""))) ->  | EI19: =IF(OR(EI$3=$E17,EI$3=$F17,AND(LEN($F17) > 0,LEN($E17) > 0,EI$3>$E17,EI$3<$F17)),1,IF(LEN($F17)>0,"",IF(OR(EI$3=$E17,EI$3=$F17,AND((($D17-$C17)*$H17)+$E17>=EI$3,$E17<=EI$3))=TRUE,1,""))) ->  | GU19: =IF(OR(GU$3=$E17,GU$3=$F17,AND(LEN($F17) > 0,LEN($E17) > 0,GU$3>$E17,GU$3<$F17)),1,IF(LEN($F17)>0,"",IF(OR(GU$3=$E17,GU$3=$F17,AND((($D17-$C17)*$H17)+$E17>=GU$3,$E17<=GU$3))=TRUE,1,""))) -> 
A21: 1.4 | B21: Activity-4 | C21: 2011-11-13 | D21: 2011-11-21 | E21: 2011-11-07 | F21: 2011-11-21 | G21: Completed | H21: 100% | I21: =IF(AND(I$3>=$C21,I$3<=$D21),1,"") ->  | J21: =IF(AND(J$3>=$C21,J$3<=$D21),1,"") ->  | S21: 1 | T21: 1 | U21: 1 | V21: 1 | W21: 1 | X21: 1 | Y21: 1 | Z21: 1 | AA21: 1 | BV21: =IF(AND(BV$3>=$C21,BV$3<=$D21),1,"") ->  | EH21: =IF(AND(EH$3>=$C21,EH$3<=$D21),1,"") ->  | GT21: =IF(AND(GT$3>=$C21,GT$3<=$D21),1,"") -> 
I23: =IF(OR(I$3=$E21,I$3=$F21,AND(LEN($F21) > 0,LEN($E21) > 0,I$3>$E21,I$3<$F21)),1,IF(LEN($F21)>0,"",IF(OR(I$3=$E21,I$3=$F21,AND((($D21-$C21)*$H21)+$E21>=I$3,$E21<=I$3))=TRUE,1,""))) ->  | J23: =IF(OR(J$3=$E21,J$3=$F21,AND(LEN($F21) > 0,LEN($E21) > 0,J$3>$E21,J$3<$F21)),1,IF(LEN($F21)>0,"",IF(OR(J$3=$E21,J$3=$F21,AND((($D21-$C21)*$H21)+$E21>=J$3,$E21<=J$3))=TRUE,1,""))) ->  | K23: =IF(OR(K$3=$E21,K$3=$F21,AND(LEN($F21) > 0,LEN($E21) > 0,K$3>$E21,K$3<$F21)),1,IF(LEN($F21)>0,"",IF(OR(K$3=$E21,K$3=$F21,AND((($D21-$C21)*$H21)+$E21>=K$3,$E21<=K$3))=TRUE,1,""))) ->  | M23: 1 | N23: 1 | O23: 1 | P23: 1 | Q23: 1 | R23: 1 | S23: 1 | T23: 1 | U23: 1 | V23: 1 | W23: 1 | X23: 1 | Y23: 1 | Z23: 1 | AA23: 1 | BW23: =IF(OR(BW$3=$E21,BW$3=$F21,AND(LEN($F21) > 0,LEN($E21) > 0,BW$3>$E21,BW$3<$F21)),1,IF(LEN($F21)>0,"",IF(OR(BW$3=$E21,BW$3=$F21,AND((($D21-$C21)*$H21)+$E21>=BW$3,$E21<=BW$3))=TRUE,1,""))) ->  | EI23: =IF(OR(EI$3=$E21,EI$3=$F21,AND(LEN($F21) > 0,LEN($E21) > 0,EI$3>$E21,EI$3<$F21)),1,IF(LEN($F21)>0,"",IF(OR(EI$3=$E21,EI$3=$F21,AND((($D21-$C21)*$H21)+$E21>=EI$3,$E21<=EI$3))=TRUE,1,""))) ->  | GU23: =IF(OR(GU$3=$E21,GU$3=$F21,AND(LEN($F21) > 0,LEN($E21) > 0,GU$3>$E21,GU$3<$F21)),1,IF(LEN($F21)>0,"",IF(OR(GU$3=$E21,GU$3=$F21,AND((($D21-$C21)*$H21)+$E21>=GU$3,$E21<=GU$3))=TRUE,1,""))) -> 
A25: 1.5 | B25: Activity-5 | C25: 2011-11-06 | D25: 2011-11-12 | E25: 2011-11-07 | F25: 2011-11-21 | G25: Completed | H25: 100% | I25: =IF(AND(I$3>=$C25,I$3<=$D25),1,"") ->  | J25: =IF(AND(J$3>=$C25,J$3<=$D25),1,"") ->  | L25: 1 | M25: 1 | N25: 1 | O25: 1 | P25: 1 | Q25: 1 | R25: 1 | BV25: =IF(AND(BV$3>=$C25,BV$3<=$D25),1,"") ->  | EH25: =IF(AND(EH$3>=$C25,EH$3<=$D25),1,"") ->  | GT25: =IF(AND(GT$3>=$C25,GT$3<=$D25),1,"") -> 
I27: =IF(OR(I$3=$E25,I$3=$F25,AND(LEN($F25) > 0,LEN($E25) > 0,I$3>$E25,I$3<$F25)),1,IF(LEN($F25)>0,"",IF(OR(I$3=$E25,I$3=$F25,AND((($D25-$C25)*$H25)+$E25>=I$3,$E25<=I$3))=TRUE,1,""))) ->  | J27: =IF(OR(J$3=$E25,J$3=$F25,AND(LEN($F25) > 0,LEN($E25) > 0,J$3>$E25,J$3<$F25)),1,IF(LEN($F25)>0,"",IF(OR(J$3=$E25,J$3=$F25,AND((($D25-$C25)*$H25)+$E25>=J$3,$E25<=J$3))=TRUE,1,""))) ->  | K27: =IF(OR(K$3=$E25,K$3=$F25,AND(LEN($F25) > 0,LEN($E25) > 0,K$3>$E25,K$3<$F25)),1,IF(LEN($F25)>0,"",IF(OR(K$3=$E25,K$3=$F25,AND((($D25-$C25)*$H25)+$E25>=K$3,$E25<=K$3))=TRUE,1,""))) ->  | M27: 1 | N27: 1 | O27: 1 | P27: 1 | Q27: 1 | R27: 1 | S27: 1 | T27: 1 | U27: 1 | V27: 1 | W27: 1 | X27: 1 | Y27: 1 | Z27: 1 | AA27: 1 | BW27: =IF(OR(BW$3=$E25,BW$3=$F25,AND(LEN($F25) > 0,LEN($E25) > 0,BW$3>$E25,BW$3<$F25)),1,IF(LEN($F25)>0,"",IF(OR(BW$3=$E25,BW$3=$F25,AND((($D25-$C25)*$H25)+$E25>=BW$3,$E25<=BW$3))=TRUE,1,""))) ->  | EI27: =IF(OR(EI$3=$E25,EI$3=$F25,AND(LEN($F25) > 0,LEN($E25) > 0,EI$3>$E25,EI$3<$F25)),1,IF(LEN($F25)>0,"",IF(OR(EI$3=$E25,EI$3=$F25,AND((($D25-$C25)*$H25)+$E25>=EI$3,$E25<=EI$3))=TRUE,1,""))) ->  | GU27: =IF(OR(GU$3=$E25,GU$3=$F25,AND(LEN($F25) > 0,LEN($E25) > 0,GU$3>$E25,GU$3<$F25)),1,IF(LEN($F25)>0,"",IF(OR(GU$3=$E25,GU$3=$F25,AND((($D25-$C25)*$H25)+$E25>=GU$3,$E25<=GU$3))=TRUE,1,""))) -> 
A29: 1.6 | B29: Activity-6 | C29: 2011-11-06 | D29: 2011-11-12 | E29: 2011-11-07 | F29: 2011-11-21 | G29: Completed | H29: 100% | I29: =IF(AND(I$3>=$C29,I$3<=$D29),1,"") ->  | J29: =IF(AND(J$3>=$C29,J$3<=$D29),1,"") ->  | L29: 1 | M29: 1 | N29: 1 | O29: 1 | P29: 1 | Q29: 1 | R29: 1 | BV29: =IF(AND(BV$3>=$C29,BV$3<=$D29),1,"") ->  | EH29: =IF(AND(EH$3>=$C29,EH$3<=$D29),1,"") ->  | GT29: =IF(AND(GT$3>=$C29,GT$3<=$D29),1,"") -> 
I31: =IF(OR(I$3=$E29,I$3=$F29,AND(LEN($F29) > 0,LEN($E29) > 0,I$3>$E29,I$3<$F29)),1,IF(LEN($F29)>0,"",IF(OR(I$3=$E29,I$3=$F29,AND((($D29-$C29)*$H29)+$E29>=I$3,$E29<=I$3))=TRUE,1,""))) ->  | J31: =IF(OR(J$3=$E29,J$3=$F29,AND(LEN($F29) > 0,LEN($E29) > 0,J$3>$E29,J$3<$F29)),1,IF(LEN($F29)>0,"",IF(OR(J$3=$E29,J$3=$F29,AND((($D29-$C29)*$H29)+$E29>=J$3,$E29<=J$3))=TRUE,1,""))) ->  | K31: =IF(OR(K$3=$E29,K$3=$F29,AND(LEN($F29) > 0,LEN($E29) > 0,K$3>$E29,K$3<$F29)),1,IF(LEN($F29)>0,"",IF(OR(K$3=$E29,K$3=$F29,AND((($D29-$C29)*$H29)+$E29>=K$3,$E29<=K$3))=TRUE,1,""))) ->  | M31: 1 | N31: 1 | O31: 1 | P31: 1 | Q31: 1 | R31: 1 | S31: 1 | T31: 1 | U31: 1 | V31: 1 | W31: 1 | X31: 1 | Y31: 1 | Z31: 1 | AA31: 1 | BW31: =IF(OR(BW$3=$E29,BW$3=$F29,AND(LEN($F29) > 0,LEN($E29) > 0,BW$3>$E29,BW$3<$F29)),1,IF(LEN($F29)>0,"",IF(OR(BW$3=$E29,BW$3=$F29,AND((($D29-$C29)*$H29)+$E29>=BW$3,$E29<=BW$3))=TRUE,1,""))) ->  | EI31: =IF(OR(EI$3=$E29,EI$3=$F29,AND(LEN($F29) > 0,LEN($E29) > 0,EI$3>$E29,EI$3<$F29)),1,IF(LEN($F29)>0,"",IF(OR(EI$3=$E29,EI$3=$F29,AND((($D29-$C29)*$H29)+$E29>=EI$3,$E29<=EI$3))=TRUE,1,""))) ->  | GU31: =IF(OR(GU$3=$E29,GU$3=$F29,AND(LEN($F29) > 0,LEN($E29) > 0,GU$3>$E29,GU$3<$F29)),1,IF(LEN($F29)>0,"",IF(OR(GU$3=$E29,GU$3=$F29,AND((($D29-$C29)*$H29)+$E29>=GU$3,$E29<=GU$3))=TRUE,1,""))) -> 
A33: 1.7 | B33: Activity-7 | C33: 2011-11-06 | D33: 2011-11-12 | E33: 2011-11-07 | F33: 2011-11-21 | G33: Completed | H33: 100% | I33: =IF(AND(I$3>=$C33,I$3<=$D33),1,"") ->  | J33: =IF(AND(J$3>=$C33,J$3<=$D33),1,"") ->  | L33: 1 | M33: 1 | N33: 1 | O33: 1 | P33: 1 | Q33: 1 | R33: 1 | BV33: =IF(AND(BV$3>=$C33,BV$3<=$D33),1,"") ->  | EH33: =IF(AND(EH$3>=$C33,EH$3<=$D33),1,"") ->  | GT33: =IF(AND(GT$3>=$C33,GT$3<=$D33),1,"") -> 
I35: =IF(OR(I$3=$E33,I$3=$F33,AND(LEN($F33) > 0,LEN($E33) > 0,I$3>$E33,I$3<$F33)),1,IF(LEN($F33)>0,"",IF(OR(I$3=$E33,I$3=$F33,AND((($D33-$C33)*$H33)+$E33>=I$3,$E33<=I$3))=TRUE,1,""))) ->  | J35: =IF(OR(J$3=$E33,J$3=$F33,AND(LEN($F33) > 0,LEN($E33) > 0,J$3>$E33,J$3<$F33)),1,IF(LEN($F33)>0,"",IF(OR(J$3=$E33,J$3=$F33,AND((($D33-$C33)*$H33)+$E33>=J$3,$E33<=J$3))=TRUE,1,""))) ->  | K35: =IF(OR(K$3=$E33,K$3=$F33,AND(LEN($F33) > 0,LEN($E33) > 0,K$3>$E33,K$3<$F33)),1,IF(LEN($F33)>0,"",IF(OR(K$3=$E33,K$3=$F33,AND((($D33-$C33)*$H33)+$E33>=K$3,$E33<=K$3))=TRUE,1,""))) ->  | M35: 1 | N35: 1 | O35: 1 | P35: 1 | Q35: 1 | R35: 1 | S35: 1 | T35: 1 | U35: 1 | V35: 1 | W35: 1 | X35: 1 | Y35: 1 | Z35: 1 | AA35: 1 | BW35: =IF(OR(BW$3=$E33,BW$3=$F33,AND(LEN($F33) > 0,LEN($E33) > 0,BW$3>$E33,BW$3<$F33)),1,IF(LEN($F33)>0,"",IF(OR(BW$3=$E33,BW$3=$F33,AND((($D33-$C33)*$H33)+$E33>=BW$3,$E33<=BW$3))=TRUE,1,""))) ->  | EI35: =IF(OR(EI$3=$E33,EI$3=$F33,AND(LEN($F33) > 0,LEN($E33) > 0,EI$3>$E33,EI$3<$F33)),1,IF(LEN($F33)>0,"",IF(OR(EI$3=$E33,EI$3=$F33,AND((($D33-$C33)*$H33)+$E33>=EI$3,$E33<=EI$3))=TRUE,1,""))) ->  | GU35: =IF(OR(GU$3=$E33,GU$3=$F33,AND(LEN($F33) > 0,LEN($E33) > 0,GU$3>$E33,GU$3<$F33)),1,IF(LEN($F33)>0,"",IF(OR(GU$3=$E33,GU$3=$F33,AND((($D33-$C33)*$H33)+$E33>=GU$3,$E33<=GU$3))=TRUE,1,""))) -> 
A37: 1.8 | B37: Activity-8 | C37: 2011-11-06 | D37: 2011-11-12 | E37: 2011-11-07 | F37: 2011-11-21 | G37: Completed | H37: 100% | I37: =IF(AND(I$3>=$C37,I$3<=$D37),1,"") ->  | J37: =IF(AND(J$3>=$C37,J$3<=$D37),1,"") ->  | L37: 1 | M37: 1 | N37: 1 | O37: 1 | P37: 1 | Q37: 1 | R37: 1 | BV37: =IF(AND(BV$3>=$C37,BV$3<=$D37),1,"") ->  | EH37: =IF(AND(EH$3>=$C37,EH$3<=$D37),1,"") ->  | GT37: =IF(AND(GT$3>=$C37,GT$3<=$D37),1,"") -> 
I39: =IF(OR(I$3=$E37,I$3=$F37,AND(LEN($F37) > 0,LEN($E37) > 0,I$3>$E37,I$3<$F37)),1,IF(LEN($F37)>0,"",IF(OR(I$3=$E37,I$3=$F37,AND((($D37-$C37)*$H37)+$E37>=I$3,$E37<=I$3))=TRUE,1,""))) ->  | J39: =IF(OR(J$3=$E37,J$3=$F37,AND(LEN($F37) > 0,LEN($E37) > 0,J$3>$E37,J$3<$F37)),1,IF(LEN($F37)>0,"",IF(OR(J$3=$E37,J$3=$F37,AND((($D37-$C37)*$H37)+$E37>=J$3,$E37<=J$3))=TRUE,1,""))) ->  | K39: =IF(OR(K$3=$E37,K$3=$F37,AND(LEN($F37) > 0,LEN($E37) > 0,K$3>$E37,K$3<$F37)),1,IF(LEN($F37)>0,"",IF(OR(K$3=$E37,K$3=$F37,AND((($D37-$C37)*$H37)+$E37>=K$3,$E37<=K$3))=TRUE,1,""))) ->  | M39: 1 | N39: 1 | O39: 1 | P39: 1 | Q39: 1 | R39: 1 | S39: 1 | T39: 1 | U39: 1 | V39: 1 | W39: 1 | X39: 1 | Y39: 1 | Z39: 1 | AA39: 1 | BW39: =IF(OR(BW$3=$E37,BW$3=$F37,AND(LEN($F37) > 0,LEN($E37) > 0,BW$3>$E37,BW$3<$F37)),1,IF(LEN($F37)>0,"",IF(OR(BW$3=$E37,BW$3=$F37,AND((($D37-$C37)*$H37)+$E37>=BW$3,$E37<=BW$3))=TRUE,1,""))) ->  | EI39: =IF(OR(EI$3=$E37,EI$3=$F37,AND(LEN($F37) > 0,LEN($E37) > 0,EI$3>$E37,EI$3<$F37)),1,IF(LEN($F37)>0,"",IF(OR(EI$3=$E37,EI$3=$F37,AND((($D37-$C37)*$H37)+$E37>=EI$3,$E37<=EI$3))=TRUE,1,""))) ->  | GU39: =IF(OR(GU$3=$E37,GU$3=$F37,AND(LEN($F37) > 0,LEN($E37) > 0,GU$3>$E37,GU$3<$F37)),1,IF(LEN($F37)>0,"",IF(OR(GU$3=$E37,GU$3=$F37,AND((($D37-$C37)*$H37)+$E37>=GU$3,$E37<=GU$3))=TRUE,1,""))) -> 
A41: 1.9 | B41: Activity-9 | C41: 2011-11-06 | D41: 2011-11-12 | E41: 2011-11-07 | F41: 2011-11-21 | G41: Completed | H41: 100% | I41: =IF(AND(I$3>=$C41,I$3<=$D41),1,"") ->  | J41: =IF(AND(J$3>=$C41,J$3<=$D41),1,"") ->  | L41: 1 | M41: 1 | N41: 1 | O41: 1 | P41: 1 | Q41: 1 | R41: 1 | BV41: =IF(AND(BV$3>=$C41,BV$3<=$D41),1,"") ->  | EH41: =IF(AND(EH$3>=$C41,EH$3<=$D41),1,"") ->  | GT41: =IF(AND(GT$3>=$C41,GT$3<=$D41),1,"") -> 
I43: =IF(OR(I$3=$E41,I$3=$F41,AND(LEN($F41) > 0,LEN($E41) > 0,I$3>$E41,I$3<$F41)),1,IF(LEN($F41)>0,"",IF(OR(I$3=$E41,I$3=$F41,AND((($D41-$C41)*$H41)+$E41>=I$3,$E41<=I$3))=TRUE,1,""))) ->  | J43: =IF(OR(J$3=$E41,J$3=$F41,AND(LEN($F41) > 0,LEN($E41) > 0,J$3>$E41,J$3<$F41)),1,IF(LEN($F41)>0,"",IF(OR(J$3=$E41,J$3=$F41,AND((($D41-$C41)*$H41)+$E41>=J$3,$E41<=J$3))=TRUE,1,""))) ->  | K43: =IF(OR(K$3=$E41,K$3=$F41,AND(LEN($F41) > 0,LEN($E41) > 0,K$3>$E41,K$3<$F41)),1,IF(LEN($F41)>0,"",IF(OR(K$3=$E41,K$3=$F41,AND((($D41-$C41)*$H41)+$E41>=K$3,$E41<=K$3))=TRUE,1,""))) ->  | M43: 1 | N43: 1 | O43: 1 | P43: 1 | Q43: 1 | R43: 1 | S43: 1 | T43: 1 | U43: 1 | V43: 1 | W43: 1 | X43: 1 | Y43: 1 | Z43: 1 | AA43: 1 | BW43: =IF(OR(BW$3=$E41,BW$3=$F41,AND(LEN($F41) > 0,LEN($E41) > 0,BW$3>$E41,BW$3<$F41)),1,IF(LEN($F41)>0,"",IF(OR(BW$3=$E41,BW$3=$F41,AND((($D41-$C41)*$H41)+$E41>=BW$3,$E41<=BW$3))=TRUE,1,""))) ->  | EI43: =IF(OR(EI$3=$E41,EI$3=$F41,AND(LEN($F41) > 0,LEN($E41) > 0,EI$3>$E41,EI$3<$F41)),1,IF(LEN($F41)>0,"",IF(OR(EI$3=$E41,EI$3=$F41,AND((($D41-$C41)*$H41)+$E41>=EI$3,$E41<=EI$3))=TRUE,1,""))) ->  | GU43: =IF(OR(GU$3=$E41,GU$3=$F41,AND(LEN($F41) > 0,LEN($E41) > 0,GU$3>$E41,GU$3<$F41)),1,IF(LEN($F41)>0,"",IF(OR(GU$3=$E41,GU$3=$F41,AND((($D41-$C41)*$H41)+$E41>=GU$3,$E41<=GU$3))=TRUE,1,""))) -> 
A45: 1.10 | B45: Activity-9 | C45: 2011-11-06 | D45: 2011-11-22 | E45: 2011-11-07 | F45: 2011-11-21 | G45: Completed | H45: 100% | I45: =IF(AND(I$3>=$C45,I$3<=$D45),1,"") ->  | J45: =IF(AND(J$3>=$C45,J$3<=$D45),1,"") ->  | L45: 1 | M45: 1 | N45: 1 | O45: 1 | P45: 1 | Q45: 1 | R45: 1 | S45: 1 | T45: 1 | U45: 1 | V45: 1 | W45: 1 | X45: 1 | Y45: 1 | Z45: 1 | AA45: 1 | AB45: 1 | BV45: =IF(AND(BV$3>=$C45,BV$3<=$D45),1,"") ->  | EH45: =IF(AND(EH$3>=$C45,EH$3<=$D45),1,"") ->  | GT45: =IF(AND(GT$3>=$C45,GT$3<=$D45),1,"") -> 
I47: =IF(OR(I$3=$E45,I$3=$F45,AND(LEN($F45) > 0,LEN($E45) > 0,I$3>$E45,I$3<$F45)),1,IF(LEN($F45)>0,"",IF(OR(I$3=$E45,I$3=$F45,AND((($D45-$C45)*$H45)+$E45>=I$3,$E45<=I$3))=TRUE,1,""))) ->  | J47: =IF(OR(J$3=$E45,J$3=$F45,AND(LEN($F45) > 0,LEN($E45) > 0,J$3>$E45,J$3<$F45)),1,IF(LEN($F45)>0,"",IF(OR(J$3=$E45,J$3=$F45,AND((($D45-$C45)*$H45)+$E45>=J$3,$E45<=J$3))=TRUE,1,""))) ->  | K47: =IF(OR(K$3=$E45,K$3=$F45,AND(LEN($F45) > 0,LEN($E45) > 0,K$3>$E45,K$3<$F45)),1,IF(LEN($F45)>0,"",IF(OR(K$3=$E45,K$3=$F45,AND((($D45-$C45)*$H45)+$E45>=K$3,$E45<=K$3))=TRUE,1,""))) ->  | M47: 1 | N47: 1 | O47: 1 | P47: 1 | Q47: 1 | R47: 1 | S47: 1 | T47: 1 | U47: 1 | V47: 1 | W47: 1 | X47: 1 | Y47: 1 | Z47: 1 | AA47: 1 | BW47: =IF(OR(BW$3=$E45,BW$3=$F45,AND(LEN($F45) > 0,LEN($E45) > 0,BW$3>$E45,BW$3<$F45)),1,IF(LEN($F45)>0,"",IF(OR(BW$3=$E45,BW$3=$F45,AND((($D45-$C45)*$H45)+$E45>=BW$3,$E45<=BW$3))=TRUE,1,""))) ->  | EI47: =IF(OR(EI$3=$E45,EI$3=$F45,AND(LEN($F45) > 0,LEN($E45) > 0,EI$3>$E45,EI$3<$F45)),1,IF(LEN($F45)>0,"",IF(OR(EI$3=$E45,EI$3=$F45,AND((($D45-$C45)*$H45)+$E45>=EI$3,$E45<=EI$3))=TRUE,1,""))) ->  | GU47: =IF(OR(GU$3=$E45,GU$3=$F45,AND(LEN($F45) > 0,LEN($E45) > 0,GU$3>$E45,GU$3<$F45)),1,IF(LEN($F45)>0,"",IF(OR(GU$3=$E45,GU$3=$F45,AND((($D45-$C45)*$H45)+$E45>=GU$3,$E45<=GU$3))=TRUE,1,""))) -> 
A49: 2 | B49: WBS Element 2 | C49: =MIN(C53:C91) -> 2011-11-04 | D49: =MAX(D53:D91) -> 2011-12-11 | E49: =MIN(E53:E91) -> 2011-11-03 | F49: =MAX(F53:F91) -> 2011-11-23 | G49: In Progress | H49: =SUMPRODUCT(H53:H91,D53:D91-C53:C91)/(SUM(D53:D91)-SUM(C53:C91)) -> 83.5% | I49: =IF(AND(I$3>=$C49,I$3<=$D49),1,"") ->  | J49: =IF(AND(J$3>=$C49,J$3<=$D49),1,"") -> 1 | K49: 1 | L49: 1 | M49: 1 | N49: 1 | O49: 1 | P49: 1 | Q49: 1 | R49: 1 | S49: 1 | T49: 1 | U49: 1 | V49: 1 | W49: 1 | X49: 1 | Y49: 1 | Z49: 1 | AA49: 1 | AB49: 1 | AC49: 1 | AD49: 1 | AE49: 1 | AF49: 1 | AG49: 1 | AH49: 1 | AI49: 1 | AJ49: 1 | AK49: 1 | AL49: 1 | AM49: 1 | AN49: 1 | AO49: 1 | AP49: 1 | AQ49: 1 | AR49: 1 | AS49: 1 | AT49: 1 | AU49: 1 | BV49: =IF(AND(BV$3>=$C49,BV$3<=$D49),1,"") ->  | EH49: =IF(AND(EH$3>=$C49,EH$3<=$D49),1,"") ->  | GT49: =IF(AND(GT$3>=$C49,GT$3<=$D49),1,"") -> 
I51: =IF(OR(I$3=$E49,I$3=$F49,AND(LEN($F49) > 0,LEN($E49) > 0,I$3>$E49,I$3<$F49)),1,IF(LEN($F49)>0,"",IF(OR(I$3=$E49,I$3=$F49,AND((($D49-$C49)*$H49)+$E49>=I$3,$E49<=I$3))=TRUE,1,""))) -> 1 | J51: =IF(OR(J$3=$E49,J$3=$F49,AND(LEN($F49) > 0,LEN($E49) > 0,J$3>$E49,J$3<$F49)),1,IF(LEN($F49)>0,"",IF(OR(J$3=$E49,J$3=$F49,AND((($D49-$C49)*$H49)+$E49>=J$3,$E49<=J$3))=TRUE,1,""))) -> 1 | K51: 1 | L51: 1 | M51: 1 | N51: 1 | O51: 1 | P51: 1 | Q51: 1 | R51: 1 | S51: 1 | T51: 1 | U51: 1 | V51: 1 | W51: 1 | X51: 1 | Y51: 1 | Z51: 1 | AA51: 1 | AB51: 1 | AC51: 1 | BV51: =IF(OR(BV$3=$E49,BV$3=$F49,AND(LEN($F49) > 0,LEN($E49) > 0,BV$3>$E49,BV$3<$F49)),1,IF(LEN($F49)>0,"",IF(OR(BV$3=$E49,BV$3=$F49,AND((($D49-$C49)*$H49)+$E49>=BV$3,$E49<=BV$3))=TRUE,1,""))) ->  | EH51: =IF(OR(EH$3=$E49,EH$3=$F49,AND(LEN($F49) > 0,LEN($E49) > 0,EH$3>$E49,EH$3<$F49)),1,IF(LEN($F49)>0,"",IF(OR(EH$3=$E49,EH$3=$F49,AND((($D49-$C49)*$H49)+$E49>=EH$3,$E49<=EH$3))=TRUE,1,""))) ->  | GT51: =IF(OR(GT$3=$E49,GT$3=$F49,AND(LEN($F49) > 0,LEN($E49) > 0,GT$3>$E49,GT$3<$F49)),1,IF(LEN($F49)>0,"",IF(OR(GT$3=$E49,GT$3=$F49,AND((($D49-$C49)*$H49)+$E49>=GT$3,$E49<=GT$3))=TRUE,1,""))) -> 
A53: =A49+0.1 -> 2.1 | B53: Activity-1 | C53: 2011-11-05 | D53: 2011-12-11 | E53: 2011-11-09 | G53: In Progress | H53: 50% | I53: =IF(AND(I$3>=$C53,I$3<=$D53),1,"") ->  | J53: =IF(AND(J$3>=$C53,J$3<=$D53),1,"") ->  | K53: 1 | L53: 1 | M53: 1 | N53: 1 | O53: 1 | P53: 1 | Q53: 1 | R53: 1 | S53: 1 | T53: 1 | U53: 1 | V53: 1 | W53: 1 | X53: 1 | Y53: 1 | Z53: 1 | AA53: 1 | AB53: 1 | AC53: 1 | AD53: 1 | AE53: 1 | AF53: 1 | AG53: 1 | AH53: 1 | AI53: 1 | AJ53: 1 | AK53: 1 | AL53: 1 | AM53: 1 | AN53: 1 | AO53: 1 | AP53: 1 | AQ53: 1 | AR53: 1 | AS53: 1 | AT53: 1 | AU53: 1 | BV53: =IF(AND(BV$3>=$C53,BV$3<=$D53),1,"") ->  | EH53: =IF(AND(EH$3>=$C53,EH$3<=$D53),1,"") ->  | GT53: =IF(AND(GT$3>=$C53,GT$3<=$D53),1,"") -> 
I55: =IF(OR(I$3=$E53,I$3=$F53,AND(LEN($F53) > 0,LEN($E53) > 0,I$3>$E53,I$3<$F53)),1,IF(LEN($F53)>0,"",IF(OR(I$3=$E53,I$3=$F53,AND((($D53-$C53)*$H53)+$E53>=I$3,$E53<=I$3))=TRUE,1,""))) ->  | J55: =IF(OR(J$3=$E53,J$3=$F53,AND(LEN($F53) > 0,LEN($E53) > 0,J$3>$E53,J$3<$F53)),1,IF(LEN($F53)>0,"",IF(OR(J$3=$E53,J$3=$F53,AND((($D53-$C53)*$H53)+$E53>=J$3,$E53<=J$3))=TRUE,1,""))) ->  | K55: =IF(OR(K$3=$E53,K$3=$F53,AND(LEN($F53) > 0,LEN($E53) > 0,K$3>$E53,K$3<$F53)),1,IF(LEN($F53)>0,"",IF(OR(K$3=$E53,K$3=$F53,AND((($D53-$C53)*$H53)+$E53>=K$3,$E53<=K$3))=TRUE,1,""))) ->  | O55: =IF(OR(O$3=$E53,O$3=$F53,AND(LEN($F53) > 0,LEN($E53) > 0,O$3>$E53,O$3<$F53)),1,IF(LEN($F53)>0,"",IF(OR(O$3=$E53,O$3=$F53,AND((($D53-$C53)*$H53)+$E53>=O$3,$E53<=O$3))=TRUE,1,""))) -> 1 | P55: =IF(OR(P$3=$E53,P$3=$F53,AND(LEN($F53) > 0,LEN($E53) > 0,P$3>$E53,P$3<$F53)),1,IF(LEN($F53)>0,"",IF(OR(P$3=$E53,P$3=$F53,AND((($D53-$C53)*$H53)+$E53>=P$3,$E53<=P$3))=TRUE,1,""))) -> 1 | Q55: 1 | R55: 1 | S55: 1 | T55: 1 | U55: 1 | V55: 1 | W55: 1 | X55: 1 | Y55: 1 | Z55: 1 | AA55: 1 | AB55: 1 | AC55: 1 | AD55: 1 | AE55: 1 | AF55: 1 | AG55: 1 | CB55: =IF(OR(CB$3=$E53,CB$3=$F53,AND(LEN($F53) > 0,LEN($E53) > 0,CB$3>$E53,CB$3<$F53)),1,IF(LEN($F53)>0,"",IF(OR(CB$3=$E53,CB$3=$F53,AND((($D53-$C53)*$H53)+$E53>=CB$3,$E53<=CB$3))=TRUE,1,""))) ->  | EN55: =IF(OR(EN$3=$E53,EN$3=$F53,AND(LEN($F53) > 0,LEN($E53) > 0,EN$3>$E53,EN$3<$F53)),1,IF(LEN($F53)>0,"",IF(OR(EN$3=$E53,EN$3=$F53,AND((($D53-$C53)*$H53)+$E53>=EN$3,$E53<=EN$3))=TRUE,1,""))) ->  | GZ55: =IF(OR(GZ$3=$E53,GZ$3=$F53,AND(LEN($F53) > 0,LEN($E53) > 0,GZ$3>$E53,GZ$3<$F53)),1,IF(LEN($F53)>0,"",IF(OR(GZ$3=$E53,GZ$3=$F53,AND((($D53-$C53)*$H53)+$E53>=GZ$3,$E53<=GZ$3))=TRUE,1,""))) -> 
A57: =A53+0.1 -> 2.2 | B57: Activity-2 | C57: 2011-11-04 | D57: 2011-11-17 | E57: 2011-11-11 | F57: 2011-11-23 | G57: Completed | H57: 100% | I57: =IF(AND(I$3>=$C57,I$3<=$D57),1,"") ->  | J57: =IF(AND(J$3>=$C57,J$3<=$D57),1,"") -> 1 | K57: 1 | L57: 1 | M57: 1 | N57: 1 | O57: 1 | P57: 1 | Q57: 1 | R57: 1 | S57: 1 | T57: 1 | U57: 1 | V57: 1 | W57: 1 | BV57: =IF(AND(BV$3>=$C57,BV$3<=$D57),1,"") ->  | EH57: =IF(AND(EH$3>=$C57,EH$3<=$D57),1,"") ->  | GT57: =IF(AND(GT$3>=$C57,GT$3<=$D57),1,"") -> 
I59: =IF(OR(I$3=$E57,I$3=$F57,AND(LEN($F57) > 0,LEN($E57) > 0,I$3>$E57,I$3<$F57)),1,IF(LEN($F57)>0,"",IF(OR(I$3=$E57,I$3=$F57,AND((($D57-$C57)*$H57)+$E57>=I$3,$E57<=I$3))=TRUE,1,""))) ->  | J59: =IF(OR(J$3=$E57,J$3=$F57,AND(LEN($F57) > 0,LEN($E57) > 0,J$3>$E57,J$3<$F57)),1,IF(LEN($F57)>0,"",IF(OR(J$3=$E57,J$3=$F57,AND((($D57-$C57)*$H57)+$E57>=J$3,$E57<=J$3))=TRUE,1,""))) ->  | K59: =IF(OR(K$3=$E57,K$3=$F57,AND(LEN($F57) > 0,LEN($E57) > 0,K$3>$E57,K$3<$F57)),1,IF(LEN($F57)>0,"",IF(OR(K$3=$E57,K$3=$F57,AND((($D57-$C57)*$H57)+$E57>=K$3,$E57<=K$3))=TRUE,1,""))) ->  | Q59: 1 | R59: 1 | S59: 1 | T59: 1 | U59: 1 | V59: 1 | W59: 1 | X59: 1 | Y59: 1 | Z59: 1 | AA59: 1 | AB59: 1 | AC59: 1 | BW59: =IF(OR(BW$3=$E57,BW$3=$F57,AND(LEN($F57) > 0,LEN($E57) > 0,BW$3>$E57,BW$3<$F57)),1,IF(LEN($F57)>0,"",IF(OR(BW$3=$E57,BW$3=$F57,AND((($D57-$C57)*$H57)+$E57>=BW$3,$E57<=BW$3))=TRUE,1,""))) ->  | EI59: =IF(OR(EI$3=$E57,EI$3=$F57,AND(LEN($F57) > 0,LEN($E57) > 0,EI$3>$E57,EI$3<$F57)),1,IF(LEN($F57)>0,"",IF(OR(EI$3=$E57,EI$3=$F57,AND((($D57-$C57)*$H57)+$E57>=EI$3,$E57<=EI$3))=TRUE,1,""))) ->  | GU59: =IF(OR(GU$3=$E57,GU$3=$F57,AND(LEN($F57) > 0,LEN($E57) > 0,GU$3>$E57,GU$3<$F57)),1,IF(LEN($F57)>0,"",IF(OR(GU$3=$E57,GU$3=$F57,AND((($D57-$C57)*$H57)+$E57>=GU$3,$E57<=GU$3))=TRUE,1,""))) -> 
A61: =A57+0.1 -> 2.3 | B61: Activity-3 | C61: 2011-11-06 | D61: 2011-11-12 | E61: 2011-11-03 | F61: 2011-11-21 | G61: Completed | H61: 100% | I61: =IF(AND(I$3>=$C61,I$3<=$D61),1,"") ->  | J61: =IF(AND(J$3>=$C61,J$3<=$D61),1,"") ->  | L61: 1 | M61: 1 | N61: 1 | O61: 1 | P61: 1 | Q61: 1 | R61: 1 | BV61: =IF(AND(BV$3>=$C61,BV$3<=$D61),1,"") ->  | EH61: =IF(AND(EH$3>=$C61,EH$3<=$D61),1,"") ->  | GT61: =IF(AND(GT$3>=$C61,GT$3<=$D61),1,"") -> 
I63: =IF(OR(I$3=$E61,I$3=$F61,AND(LEN($F61) > 0,LEN($E61) > 0,I$3>$E61,I$3<$F61)),1,IF(LEN($F61)>0,"",IF(OR(I$3=$E61,I$3=$F61,AND((($D61-$C61)*$H61)+$E61>=I$3,$E61<=I$3))=TRUE,1,""))) -> 1 | J63: =IF(OR(J$3=$E61,J$3=$F61,AND(LEN($F61) > 0,LEN($E61) > 0,J$3>$E61,J$3<$F61)),1,IF(LEN($F61)>0,"",IF(OR(J$3=$E61,J$3=$F61,AND((($D61-$C61)*$H61)+$E61>=J$3,$E61<=J$3))=TRUE,1,""))) -> 1 | K63: =IF(OR(K$3=$E61,K$3=$F61,AND(LEN($F61) > 0,LEN($E61) > 0,K$3>$E61,K$3<$F61)),1,IF(LEN($F61)>0,"",IF(OR(K$3=$E61,K$3=$F61,AND((($D61-$C61)*$H61)+$E61>=K$3,$E61<=K$3))=TRUE,1,""))) -> 1 | L63: 1 | M63: 1 | N63: 1 | O63: 1 | P63: 1 | Q63: 1 | R63: 1 | S63: 1 | T63: 1 | U63: 1 | V63: 1 | W63: 1 | X63: 1 | Y63: 1 | Z63: 1 | AA63: 1 | BW63: =IF(OR(BW$3=$E61,BW$3=$F61,AND(LEN($F61) > 0,LEN($E61) > 0,BW$3>$E61,BW$3<$F61)),1,IF(LEN($F61)>0,"",IF(OR(BW$3=$E61,BW$3=$F61,AND((($D61-$C61)*$H61)+$E61>=BW$3,$E61<=BW$3))=TRUE,1,""))) ->  | EI63: =IF(OR(EI$3=$E61,EI$3=$F61,AND(LEN($F61) > 0,LEN($E61) > 0,EI$3>$E61,EI$3<$F61)),1,IF(LEN($F61)>0,"",IF(OR(EI$3=$E61,EI$3=$F61,AND((($D61-$C61)*$H61)+$E61>=EI$3,$E61<=EI$3))=TRUE,1,""))) ->  | GU63: =IF(OR(GU$3=$E61,GU$3=$F61,AND(LEN($F61) > 0,LEN($E61) > 0,GU$3>$E61,GU$3<$F61)),1,IF(LEN($F61)>0,"",IF(OR(GU$3=$E61,GU$3=$F61,AND((($D61-$C61)*$H61)+$E61>=GU$3,$E61<=GU$3))=TRUE,1,""))) -> 
A65: =A61+0.1 -> 2.4 | B65: Activity-4 | C65: 2011-11-13 | D65: 2011-11-21 | E65: 2011-11-07 | F65: 2011-11-21 | G65: Completed | H65: 100% | I65: =IF(AND(I$3>=$C65,I$3<=$D65),1,"") ->  | J65: =IF(AND(J$3>=$C65,J$3<=$D65),1,"") ->  | S65: 1 | T65: 1 | U65: 1 | V65: 1 | W65: 1 | X65: 1 | Y65: 1 | Z65: 1 | AA65: 1 | BV65: =IF(AND(BV$3>=$C65,BV$3<=$D65),1,"") ->  | EH65: =IF(AND(EH$3>=$C65,EH$3<=$D65),1,"") ->  | GT65: =IF(AND(GT$3>=$C65,GT$3<=$D65),1,"") -> 
I67: =IF(OR(I$3=$E65,I$3=$F65,AND(LEN($F65) > 0,LEN($E65) > 0,I$3>$E65,I$3<$F65)),1,IF(LEN($F65)>0,"",IF(OR(I$3=$E65,I$3=$F65,AND((($D65-$C65)*$H65)+$E65>=I$3,$E65<=I$3))=TRUE,1,""))) ->  | J67: =IF(OR(J$3=$E65,J$3=$F65,AND(LEN($F65) > 0,LEN($E65) > 0,J$3>$E65,J$3<$F65)),1,IF(LEN($F65)>0,"",IF(OR(J$3=$E65,J$3=$F65,AND((($D65-$C65)*$H65)+$E65>=J$3,$E65<=J$3))=TRUE,1,""))) ->  | K67: =IF(OR(K$3=$E65,K$3=$F65,AND(LEN($F65) > 0,LEN($E65) > 0,K$3>$E65,K$3<$F65)),1,IF(LEN($F65)>0,"",IF(OR(K$3=$E65,K$3=$F65,AND((($D65-$C65)*$H65)+$E65>=K$3,$E65<=K$3))=TRUE,1,""))) ->  | M67: 1 | N67: 1 | O67: 1 | P67: 1 | Q67: 1 | R67: 1 | S67: 1 | T67: 1 | U67: 1 | V67: 1 | W67: 1 | X67: 1 | Y67: 1 | Z67: 1 | AA67: 1 | BW67: =IF(OR(BW$3=$E65,BW$3=$F65,AND(LEN($F65) > 0,LEN($E65) > 0,BW$3>$E65,BW$3<$F65)),1,IF(LEN($F65)>0,"",IF(OR(BW$3=$E65,BW$3=$F65,AND((($D65-$C65)*$H65)+$E65>=BW$3,$E65<=BW$3))=TRUE,1,""))) ->  | EI67: =IF(OR(EI$3=$E65,EI$3=$F65,AND(LEN($F65) > 0,LEN($E65) > 0,EI$3>$E65,EI$3<$F65)),1,IF(LEN($F65)>0,"",IF(OR(EI$3=$E65,EI$3=$F65,AND((($D65-$C65)*$H65)+$E65>=EI$3,$E65<=EI$3))=TRUE,1,""))) ->  | GU67: =IF(OR(GU$3=$E65,GU$3=$F65,AND(LEN($F65) > 0,LEN($E65) > 0,GU$3>$E65,GU$3<$F65)),1,IF(LEN($F65)>0,"",IF(OR(GU$3=$E65,GU$3=$F65,AND((($D65-$C65)*$H65)+$E65>=GU$3,$E65<=GU$3))=TRUE,1,""))) -> 
A69: =A65+0.1 -> 2.5 | B69: Activity-5 | C69: 2011-11-06 | D69: 2011-11-12 | E69: 2011-11-07 | F69: 2011-11-21 | G69: Completed | H69: 100% | I69: =IF(AND(I$3>=$C69,I$3<=$D69),1,"") ->  | J69: =IF(AND(J$3>=$C69,J$3<=$D69),1,"") ->  | L69: 1 | M69: 1 | N69: 1 | O69: 1 | P69: 1 | Q69: 1 | R69: 1 | BV69: =IF(AND(BV$3>=$C69,BV$3<=$D69),1,"") ->  | EH69: =IF(AND(EH$3>=$C69,EH$3<=$D69),1,"") ->  | GT69: =IF(AND(GT$3>=$C69,GT$3<=$D69),1,"") -> 
I71: =IF(OR(I$3=$E69,I$3=$F69,AND(LEN($F69) > 0,LEN($E69) > 0,I$3>$E69,I$3<$F69)),1,IF(LEN($F69)>0,"",IF(OR(I$3=$E69,I$3=$F69,AND((($D69-$C69)*$H69)+$E69>=I$3,$E69<=I$3))=TRUE,1,""))) ->  | J71: =IF(OR(J$3=$E69,J$3=$F69,AND(LEN($F69) > 0,LEN($E69) > 0,J$3>$E69,J$3<$F69)),1,IF(LEN($F69)>0,"",IF(OR(J$3=$E69,J$3=$F69,AND((($D69-$C69)*$H69)+$E69>=J$3,$E69<=J$3))=TRUE,1,""))) ->  | K71: =IF(OR(K$3=$E69,K$3=$F69,AND(LEN($F69) > 0,LEN($E69) > 0,K$3>$E69,K$3<$F69)),1,IF(LEN($F69)>0,"",IF(OR(K$3=$E69,K$3=$F69,AND((($D69-$C69)*$H69)+$E69>=K$3,$E69<=K$3))=TRUE,1,""))) ->  | M71: 1 | N71: 1 | O71: 1 | P71: 1 | Q71: 1 | R71: 1 | S71: 1 | T71: 1 | U71: 1 | V71: 1 | W71: 1 | X71: 1 | Y71: 1 | Z71: 1 | AA71: 1 | BW71: =IF(OR(BW$3=$E69,BW$3=$F69,AND(LEN($F69) > 0,LEN($E69) > 0,BW$3>$E69,BW$3<$F69)),1,IF(LEN($F69)>0,"",IF(OR(BW$3=$E69,BW$3=$F69,AND((($D69-$C69)*$H69)+$E69>=BW$3,$E69<=BW$3))=TRUE,1,""))) ->  | EI71: =IF(OR(EI$3=$E69,EI$3=$F69,AND(LEN($F69) > 0,LEN($E69) > 0,EI$3>$E69,EI$3<$F69)),1,IF(LEN($F69)>0,"",IF(OR(EI$3=$E69,EI$3=$F69,AND((($D69-$C69)*$H69)+$E69>=EI$3,$E69<=EI$3))=TRUE,1,""))) ->  | GU71: =IF(OR(GU$3=$E69,GU$3=$F69,AND(LEN($F69) > 0,LEN($E69) > 0,GU$3>$E69,GU$3<$F69)),1,IF(LEN($F69)>0,"",IF(OR(GU$3=$E69,GU$3=$F69,AND((($D69-$C69)*$H69)+$E69>=GU$3,$E69<=GU$3))=TRUE,1,""))) -> 
A73: =A69+0.1 -> 2.6 | B73: Activity-6 | C73: 2011-11-06 | D73: 2011-11-12 | E73: 2011-11-07 | F73: 2011-11-21 | G73: Completed | H73: 100% | I73: =IF(AND(I$3>=$C73,I$3<=$D73),1,"") ->  | J73: =IF(AND(J$3>=$C73,J$3<=$D73),1,"") ->  | L73: 1 | M73: 1 | N73: 1 | O73: 1 | P73: 1 | Q73: 1 | R73: 1 | BV73: =IF(AND(BV$3>=$C73,BV$3<=$D73),1,"") ->  | EH73: =IF(AND(EH$3>=$C73,EH$3<=$D73),1,"") ->  | GT73: =IF(AND(GT$3>=$C73,GT$3<=$D73),1,"") -> 
I75: =IF(OR(I$3=$E73,I$3=$F73,AND(LEN($F73) > 0,LEN($E73) > 0,I$3>$E73,I$3<$F73)),1,IF(LEN($F73)>0,"",IF(OR(I$3=$E73,I$3=$F73,AND((($D73-$C73)*$H73)+$E73>=I$3,$E73<=I$3))=TRUE,1,""))) ->  | J75: =IF(OR(J$3=$E73,J$3=$F73,AND(LEN($F73) > 0,LEN($E73) > 0,J$3>$E73,J$3<$F73)),1,IF(LEN($F73)>0,"",IF(OR(J$3=$E73,J$3=$F73,AND((($D73-$C73)*$H73)+$E73>=J$3,$E73<=J$3))=TRUE,1,""))) ->  | K75: =IF(OR(K$3=$E73,K$3=$F73,AND(LEN($F73) > 0,LEN($E73) > 0,K$3>$E73,K$3<$F73)),1,IF(LEN($F73)>0,"",IF(OR(K$3=$E73,K$3=$F73,AND((($D73-$C73)*$H73)+$E73>=K$3,$E73<=K$3))=TRUE,1,""))) ->  | M75: 1 | N75: 1 | O75: 1 | P75: 1 | Q75: 1 | R75: 1 | S75: 1 | T75: 1 | U75: 1 | V75: 1 | W75: 1 | X75: 1 | Y75: 1 | Z75: 1 | AA75: 1 | BW75: =IF(OR(BW$3=$E73,BW$3=$F73,AND(LEN($F73) > 0,LEN($E73) > 0,BW$3>$E73,BW$3<$F73)),1,IF(LEN($F73)>0,"",IF(OR(BW$3=$E73,BW$3=$F73,AND((($D73-$C73)*$H73)+$E73>=BW$3,$E73<=BW$3))=TRUE,1,""))) ->  | EI75: =IF(OR(EI$3=$E73,EI$3=$F73,AND(LEN($F73) > 0,LEN($E73) > 0,EI$3>$E73,EI$3<$F73)),1,IF(LEN($F73)>0,"",IF(OR(EI$3=$E73,EI$3=$F73,AND((($D73-$C73)*$H73)+$E73>=EI$3,$E73<=EI$3))=TRUE,1,""))) ->  | GU75: =IF(OR(GU$3=$E73,GU$3=$F73,AND(LEN($F73) > 0,LEN($E73) > 0,GU$3>$E73,GU$3<$F73)),1,IF(LEN($F73)>0,"",IF(OR(GU$3=$E73,GU$3=$F73,AND((($D73-$C73)*$H73)+$E73>=GU$3,$E73<=GU$3))=TRUE,1,""))) -> 
A77: =A73+0.1 -> 2.7 | B77: Activity-7 | C77: 2011-11-06 | D77: 2011-11-12 | E77: 2011-11-07 | F77: 2011-11-21 | G77: Completed | H77: 100% | I77: =IF(AND(I$3>=$C77,I$3<=$D77),1,"") ->  | J77: =IF(AND(J$3>=$C77,J$3<=$D77),1,"") ->  | L77: 1 | M77: 1 | N77: 1 | O77: 1 | P77: 1 | Q77: 1 | R77: 1 | BV77: =IF(AND(BV$3>=$C77,BV$3<=$D77),1,"") ->  | EH77: =IF(AND(EH$3>=$C77,EH$3<=$D77),1,"") ->  | GT77: =IF(AND(GT$3>=$C77,GT$3<=$D77),1,"") -> 
I79: =IF(OR(I$3=$E77,I$3=$F77,AND(LEN($F77) > 0,LEN($E77) > 0,I$3>$E77,I$3<$F77)),1,IF(LEN($F77)>0,"",IF(OR(I$3=$E77,I$3=$F77,AND((($D77-$C77)*$H77)+$E77>=I$3,$E77<=I$3))=TRUE,1,""))) ->  | J79: =IF(OR(J$3=$E77,J$3=$F77,AND(LEN($F77) > 0,LEN($E77) > 0,J$3>$E77,J$3<$F77)),1,IF(LEN($F77)>0,"",IF(OR(J$3=$E77,J$3=$F77,AND((($D77-$C77)*$H77)+$E77>=J$3,$E77<=J$3))=TRUE,1,""))) ->  | K79: =IF(OR(K$3=$E77,K$3=$F77,AND(LEN($F77) > 0,LEN($E77) > 0,K$3>$E77,K$3<$F77)),1,IF(LEN($F77)>0,"",IF(OR(K$3=$E77,K$3=$F77,AND((($D77-$C77)*$H77)+$E77>=K$3,$E77<=K$3))=TRUE,1,""))) ->  | M79: 1 | N79: 1 | O79: 1 | P79: 1 | Q79: 1 | R79: 1 | S79: 1 | T79: 1 | U79: 1 | V79: 1 | W79: 1 | X79: 1 | Y79: 1 | Z79: 1 | AA79: 1 | BW79: =IF(OR(BW$3=$E77,BW$3=$F77,AND(LEN($F77) > 0,LEN($E77) > 0,BW$3>$E77,BW$3<$F77)),1,IF(LEN($F77)>0,"",IF(OR(BW$3=$E77,BW$3=$F77,AND((($D77-$C77)*$H77)+$E77>=BW$3,$E77<=BW$3))=TRUE,1,""))) ->  | EI79: =IF(OR(EI$3=$E77,EI$3=$F77,AND(LEN($F77) > 0,LEN($E77) > 0,EI$3>$E77,EI$3<$F77)),1,IF(LEN($F77)>0,"",IF(OR(EI$3=$E77,EI$3=$F77,AND((($D77-$C77)*$H77)+$E77>=EI$3,$E77<=EI$3))=TRUE,1,""))) ->  | GU79: =IF(OR(GU$3=$E77,GU$3=$F77,AND(LEN($F77) > 0,LEN($E77) > 0,GU$3>$E77,GU$3<$F77)),1,IF(LEN($F77)>0,"",IF(OR(GU$3=$E77,GU$3=$F77,AND((($D77-$C77)*$H77)+$E77>=GU$3,$E77<=GU$3))=TRUE,1,""))) -> 
A81: =A77+0.1 -> 2.8 | B81: Activity-8 | C81: 2011-11-06 | D81: 2011-11-12 | E81: 2011-11-07 | F81: 2011-11-21 | G81: Completed | H81: 100% | I81: =IF(AND(I$3>=$C81,I$3<=$D81),1,"") ->  | J81: =IF(AND(J$3>=$C81,J$3<=$D81),1,"") ->  | L81: 1 | M81: 1 | N81: 1 | O81: 1 | P81: 1 | Q81: 1 | R81: 1 | BV81: =IF(AND(BV$3>=$C81,BV$3<=$D81),1,"") ->  | EH81: =IF(AND(EH$3>=$C81,EH$3<=$D81),1,"") ->  | GT81: =IF(AND(GT$3>=$C81,GT$3<=$D81),1,"") -> 
I83: =IF(OR(I$3=$E81,I$3=$F81,AND(LEN($F81) > 0,LEN($E81) > 0,I$3>$E81,I$3<$F81)),1,IF(LEN($F81)>0,"",IF(OR(I$3=$E81,I$3=$F81,AND((($D81-$C81)*$H81)+$E81>=I$3,$E81<=I$3))=TRUE,1,""))) ->  | J83: =IF(OR(J$3=$E81,J$3=$F81,AND(LEN($F81) > 0,LEN($E81) > 0,J$3>$E81,J$3<$F81)),1,IF(LEN($F81)>0,"",IF(OR(J$3=$E81,J$3=$F81,AND((($D81-$C81)*$H81)+$E81>=J$3,$E81<=J$3))=TRUE,1,""))) ->  | K83: =IF(OR(K$3=$E81,K$3=$F81,AND(LEN($F81) > 0,LEN($E81) > 0,K$3>$E81,K$3<$F81)),1,IF(LEN($F81)>0,"",IF(OR(K$3=$E81,K$3=$F81,AND((($D81-$C81)*$H81)+$E81>=K$3,$E81<=K$3))=TRUE,1,""))) ->  | M83: 1 | N83: 1 | O83: 1 | P83: 1 | Q83: 1 | R83: 1 | S83: 1 | T83: 1 | U83: 1 | V83: 1 | W83: 1 | X83: 1 | Y83: 1 | Z83: 1 | AA83: 1 | BW83: =IF(OR(BW$3=$E81,BW$3=$F81,AND(LEN($F81) > 0,LEN($E81) > 0,BW$3>$E81,BW$3<$F81)),1,IF(LEN($F81)>0,"",IF(OR(BW$3=$E81,BW$3=$F81,AND((($D81-$C81)*$H81)+$E81>=BW$3,$E81<=BW$3))=TRUE,1,""))) ->  | EI83: =IF(OR(EI$3=$E81,EI$3=$F81,AND(LEN($F81) > 0,LEN($E81) > 0,EI$3>$E81,EI$3<$F81)),1,IF(LEN($F81)>0,"",IF(OR(EI$3=$E81,EI$3=$F81,AND((($D81-$C81)*$H81)+$E81>=EI$3,$E81<=EI$3))=TRUE,1,""))) ->  | GU83: =IF(OR(GU$3=$E81,GU$3=$F81,AND(LEN($F81) > 0,LEN($E81) > 0,GU$3>$E81,GU$3<$F81)),1,IF(LEN($F81)>0,"",IF(OR(GU$3=$E81,GU$3=$F81,AND((($D81-$C81)*$H81)+$E81>=GU$3,$E81<=GU$3))=TRUE,1,""))) -> 
A85: =A81+0.1 -> 2.9 | B85: Activity-9 | C85: 2011-11-06 | D85: 2011-11-12 | E85: 2011-11-07 | F85: 2011-11-21 | G85: Completed | H85: 100% | I85: =IF(AND(I$3>=$C85,I$3<=$D85),1,"") ->  | J85: =IF(AND(J$3>=$C85,J$3<=$D85),1,"") ->  | L85: 1 | M85: 1 | N85: 1 | O85: 1 | P85: 1 | Q85: 1 | R85: 1 | BV85: =IF(AND(BV$3>=$C85,BV$3<=$D85),1,"") ->  | EH85: =IF(AND(EH$3>=$C85,EH$3<=$D85),1,"") ->  | GT85: =IF(AND(GT$3>=$C85,GT$3<=$D85),1,"") -> 
I87: =IF(OR(I$3=$E85,I$3=$F85,AND(LEN($F85) > 0,LEN($E85) > 0,I$3>$E85,I$3<$F85)),1,IF(LEN($F85)>0,"",IF(OR(I$3=$E85,I$3=$F85,AND((($D85-$C85)*$H85)+$E85>=I$3,$E85<=I$3))=TRUE,1,""))) ->  | J87: =IF(OR(J$3=$E85,J$3=$F85,AND(LEN($F85) > 0,LEN($E85) > 0,J$3>$E85,J$3<$F85)),1,IF(LEN($F85)>0,"",IF(OR(J$3=$E85,J$3=$F85,AND((($D85-$C85)*$H85)+$E85>=J$3,$E85<=J$3))=TRUE,1,""))) ->  | K87: =IF(OR(K$3=$E85,K$3=$F85,AND(LEN($F85) > 0,LEN($E85) > 0,K$3>$E85,K$3<$F85)),1,IF(LEN($F85)>0,"",IF(OR(K$3=$E85,K$3=$F85,AND((($D85-$C85)*$H85)+$E85>=K$3,$E85<=K$3))=TRUE,1,""))) ->  | M87: 1 | N87: 1 | O87: 1 | P87: 1 | Q87: 1 | R87: 1 | S87: 1 | T87: 1 | U87: 1 | V87: 1 | W87: 1 | X87: 1 | Y87: 1 | Z87: 1 | AA87: 1 | BW87: =IF(OR(BW$3=$E85,BW$3=$F85,AND(LEN($F85) > 0,LEN($E85) > 0,BW$3>$E85,BW$3<$F85)),1,IF(LEN($F85)>0,"",IF(OR(BW$3=$E85,BW$3=$F85,AND((($D85-$C85)*$H85)+$E85>=BW$3,$E85<=BW$3))=TRUE,1,""))) ->  | EI87: =IF(OR(EI$3=$E85,EI$3=$F85,AND(LEN($F85) > 0,LEN($E85) > 0,EI$3>$E85,EI$3<$F85)),1,IF(LEN($F85)>0,"",IF(OR(EI$3=$E85,EI$3=$F85,AND((($D85-$C85)*$H85)+$E85>=EI$3,$E85<=EI$3))=TRUE,1,""))) ->  | GU87: =IF(OR(GU$3=$E85,GU$3=$F85,AND(LEN($F85) > 0,LEN($E85) > 0,GU$3>$E85,GU$3<$F85)),1,IF(LEN($F85)>0,"",IF(OR(GU$3=$E85,GU$3=$F85,AND((($D85-$C85)*$H85)+$E85>=GU$3,$E85<=GU$3))=TRUE,1,""))) -> 
A89: =A85+0.1 -> 3.0 | B89: Activity-9 | C89: 2011-11-06 | D89: 2011-11-22 | E89: 2011-11-07 | F89: 2011-11-21 | G89: Completed | H89: 100% | I89: =IF(AND(I$3>=$C89,I$3<=$D89),1,"") ->  | J89: =IF(AND(J$3>=$C89,J$3<=$D89),1,"") ->  | L89: 1 | M89: 1 | N89: 1 | O89: 1 | P89: 1 | Q89: 1 | R89: 1 | S89: 1 | T89: 1 | U89: 1 | V89: 1 | W89: 1 | X89: 1 | Y89: 1 | Z89: 1 | AA89: 1 | AB89: 1 | BV89: =IF(AND(BV$3>=$C89,BV$3<=$D89),1,"") ->  | EH89: =IF(AND(EH$3>=$C89,EH$3<=$D89),1,"") ->  | GT89: =IF(AND(GT$3>=$C89,GT$3<=$D89),1,"") -> 
I91: =IF(OR(I$3=$E89,I$3=$F89,AND(LEN($F89) > 0,LEN($E89) > 0,I$3>$E89,I$3<$F89)),1,IF(LEN($F89)>0,"",IF(OR(I$3=$E89,I$3=$F89,AND((($D89-$C89)*$H89)+$E89>=I$3,$E89<=I$3))=TRUE,1,""))) ->  | J91: =IF(OR(J$3=$E89,J$3=$F89,AND(LEN($F89) > 0,LEN($E89) > 0,J$3>$E89,J$3<$F89)),1,IF(LEN($F89)>0,"",IF(OR(J$3=$E89,J$3=$F89,AND((($D89-$C89)*$H89)+$E89>=J$3,$E89<=J$3))=TRUE,1,""))) ->  | K91: =IF(OR(K$3=$E89,K$3=$F89,AND(LEN($F89) > 0,LEN($E89) > 0,K$3>$E89,K$3<$F89)),1,IF(LEN($F89)>0,"",IF(OR(K$3=$E89,K$3=$F89,AND((($D89-$C89)*$H89)+$E89>=K$3,$E89<=K$3))=TRUE,1,""))) ->  | M91: 1 | N91: 1 | O91: 1 | P91: 1 | Q91: 1 | R91: 1 | S91: 1 | T91: 1 | U91: 1 | V91: 1 | W91: 1 | X91: 1 | Y91: 1 | Z91: 1 | AA91: 1 | BW91: =IF(OR(BW$3=$E89,BW$3=$F89,AND(LEN($F89) > 0,LEN($E89) > 0,BW$3>$E89,BW$3<$F89)),1,IF(LEN($F89)>0,"",IF(OR(BW$3=$E89,BW$3=$F89,AND((($D89-$C89)*$H89)+$E89>=BW$3,$E89<=BW$3))=TRUE,1,""))) ->  | EI91: =IF(OR(EI$3=$E89,EI$3=$F89,AND(LEN($F89) > 0,LEN($E89) > 0,EI$3>$E89,EI$3<$F89)),1,IF(LEN($F89)>0,"",IF(OR(EI$3=$E89,EI$3=$F89,AND((($D89-$C89)*$H89)+$E89>=EI$3,$E89<=EI$3))=TRUE,1,""))) ->  | GU91: =IF(OR(GU$3=$E89,GU$3=$F89,AND(LEN($F89) > 0,LEN($E89) > 0,GU$3>$E89,GU$3<$F89)),1,IF(LEN($F89)>0,"",IF(OR(GU$3=$E89,GU$3=$F89,AND((($D89-$C89)*$H89)+$E89>=GU$3,$E89<=GU$3))=TRUE,1,""))) -> 
